[Event "*** Titled Tuesday 3|2 Blitz"]
[Site "Chess.com"]
[Date "2016.08.02"]
[Round "5"]
[White "wonderfultime"]
[Black "yian123"]
[Result "0-1"]
[WhiteElo "2604"]
[BlackElo "2361"]
[TimeControl "180+2"]
[EndTime "12:09:52 PDT"]
[Termination "yian123 won by resignation"]

1. d4 {[%clk 0:03:01.9]} 1... d5 {[%clk 0:03:00.2]} 2. c4 {[%clk 0:03:03.1]}
2... c6 {[%clk 0:03:01.1]} 3. Nc3 {[%clk 0:03:04.1]} 3... Nf6 {[%clk 0:03:01.9]}
4. e3 {[%clk 0:03:05.3]} 4... a6 {[%clk 0:03:02.5]} 5. Nf3 {[%clk 0:03:06.1]}
5... g6 {[%clk 0:03:03.4]} 6. Be2 {[%clk 0:03:05.7]} 6... Bg7 {[%clk 0:03:00.8]}
7. O-O {[%clk 0:03:07]} 7... O-O {[%clk 0:03:01.4]} 8. b3 {[%clk 0:03:08.4]}
8... Bg4 {[%clk 0:03:01.9]} 9. Bb2 {[%clk 0:03:08.4]} 9... Nbd7 {[%clk
0:03:00.6]} 10. h3 {[%clk 0:03:09.6]} 10... Bxf3 {[%clk 0:03:00.6]} 11. Bxf3
{[%clk 0:03:11.5]} 11... e6 {[%clk 0:03:01.9]} 12. Rc1 {[%clk 0:03:12.1]} 12...
Re8 {[%clk 0:03:02.1]} 13. Qc2 {[%clk 0:03:06.8]} 13... Rc8 {[%clk 0:03:02.3]}
14. Rfd1 {[%clk 0:03:06.9]} 14... Nb6 {[%clk 0:03:02.2]} 15. Qe2 {[%clk
0:03:00.8]} 15... Qe7 {[%clk 0:03:00.3]} 16. g3 {[%clk 0:02:53.9]} 16... h5
{[%clk 0:02:54.7]} 17. Bg2 {[%clk 0:02:53.6]} 17... Rcd8 {[%clk 0:02:55.2]} 18.
a4 {[%clk 0:02:53.1]} 18... Qb4 {[%clk 0:02:47.5]} 19. c5 {[%clk 0:02:53.5]}
19... Nbd7 {[%clk 0:02:47.9]} 20. Na2 {[%clk 0:02:37.6]} 20... Qa5 {[%clk
0:02:42.4]} 21. f4 {[%clk 0:02:32.3]} 21... Ne4 {[%clk 0:02:42.6]} 22. g4 {[%clk
0:02:31.8]} 22... hxg4 {[%clk 0:02:41.4]} 23. hxg4 {[%clk 0:02:33.7]} 23... f5
{[%clk 0:02:39.8]} 24. g5 {[%clk 0:02:34.5]} 24... Kf7 {[%clk 0:02:39.3]} 25.
Ba3 {[%clk 0:02:22.5]} 25... Rh8 {[%clk 0:02:30.2]} 26. Bb4 {[%clk 0:02:22.8]}
26... Qc7 {[%clk 0:02:29.5]} 27. Be1 {[%clk 0:02:24.4]} 27... Ra8 {[%clk
0:02:23.8]} 28. b4 {[%clk 0:02:23.3]} 28... Bf8 {[%clk 0:02:20.1]} 29. Rb1
{[%clk 0:02:20.4]} 29... Be7 {[%clk 0:02:12.1]} 30. Qf3 {[%clk 0:02:09.8]} 30...
Rh7 {[%clk 0:02:01.1]} 31. Nc1 {[%clk 0:02:03.9]} 31... b5 {[%clk 0:01:57.8]}
32. Nd3 {[%clk 0:02:05.1]} 32... Rhh8 {[%clk 0:01:46.5]} 33. Ra1 {[%clk
0:02:05.7]} 33... Rhb8 {[%clk 0:01:42.7]} 34. Ra2 {[%clk 0:01:59.9]} 34... Rh8
{[%clk 0:01:42.5]} 35. Rda1 {[%clk 0:01:59.4]} 35... Rab8 {[%clk 0:01:43.6]} 36.
Qe2 {[%clk 0:01:58.8]} 36... Kg7 {[%clk 0:01:39.3]} 37. axb5 {[%clk 0:01:56.5]}
37... axb5 {[%clk 0:01:39.5]} 38. Ra7 {[%clk 0:01:52.5]} 38... Rb7 {[%clk
0:01:40]} 39. Qa2 {[%clk 0:01:53.3]} 39... Rhb8 {[%clk 0:01:33.4]} 40. Ra6
{[%clk 0:01:48.5]} 40... Qc8 {[%clk 0:01:22.2]} 41. Nc1 {[%clk 0:01:45.9]} 41...
Bd8 {[%clk 0:01:16.4]} 42. Nb3 {[%clk 0:01:38.4]} 42... Kf7 {[%clk 0:01:17.1]}
43. Bf1 {[%clk 0:01:35.3]} 43... Kg7 {[%clk 0:01:12.7]} 44. Qh2 {[%clk
0:01:36.3]} 44... Nf8 {[%clk 0:01:09.3]} 45. R1a2 {[%clk 0:01:16.2]} 45... Kg8
{[%clk 0:01:09.2]} 46. Qg2 {[%clk 0:01:09.7]} 46... Rh7 {[%clk 0:01:05.4]} 47.
Nc1 {[%clk 0:01:10.6]} 47... Rbb7 {[%clk 0:00:27.8]} 48. Nd3 {[%clk 0:01:09]}
48... Nd7 {[%clk 0:00:28.4]} 49. R2a3 {[%clk 0:01:04.7]} 49... Kg7 {[%clk
0:00:18.9]} 50. Ra8 {[%clk 0:01:04.7]} 50... Rb8 {[%clk 0:00:17]} 51. Qa2 {[%clk
0:01:05.7]} 51... Bc7 {[%clk 0:00:15.6]} 52. R3a7 {[%clk 0:00:55.7]} 52... Rh8
{[%clk 0:00:14.7]} 53. Rxb8 {[%clk 0:00:54.3]} 53... Nxb8 {[%clk 0:00:12.9]} 54.
Ne5 {[%clk 0:00:53.8]} 54... Re8 {[%clk 0:00:12.2]} 55. Bd3 {[%clk 0:00:45.9]}
55... Re7 {[%clk 0:00:11.8]} 56. Qh2 {[%clk 0:00:47.1]} 56... Kg8 {[%clk
0:00:10.6]} 57. Nxg6 {[%clk 0:00:47.1]} 57... Rh7 {[%clk 0:00:11.5]} 58. Qg2
{[%clk 0:00:46.1]} 58... Qe8 {[%clk 0:00:11.9]} 59. Nh4 {[%clk 0:00:39.5]} 59...
Bxf4 {[%clk 0:00:12.1]} 60. Rxh7 {[%clk 0:00:27.7]} 60... Bxe3+ {[%clk
0:00:12.9]} 61. Kf1 {[%clk 0:00:29.4]} 61... Kxh7 {[%clk 0:00:13.7]} 62. Qh2
{[%clk 0:00:24.8]} 62... Kg8 {[%clk 0:00:11.7]} 63. Nf3 {[%clk 0:00:24.8]} 63...
Nd7 {[%clk 0:00:10.5]} 64. Ke2 {[%clk 0:00:25]} 64... Bc1 {[%clk 0:00:10.1]} 65.
Kd1 {[%clk 0:00:25.6]} 65... Be3 {[%clk 0:00:10]} 66. Qc7 {[%clk 0:00:23.8]}
66... Nf8 {[%clk 0:00:09.2]} 67. Be2 {[%clk 0:00:22.7]} 67... Nxg5 {[%clk
0:00:09.5]} 68. Qg3 {[%clk 0:00:21.1]} 68... Qg6 {[%clk 0:00:08.4]} 69. Ne5
{[%clk 0:00:22.3]} 69... f4 {[%clk 0:00:08.1]} 70. Nxg6 {[%clk 0:00:23]} 70...
fxg3 {[%clk 0:00:09.1]} 71. Ne7+ {[%clk 0:00:20.7]} 71... Kf7 {[%clk 0:00:09.5]}
72. Nxc6 {[%clk 0:00:14]} 72... g2 {[%clk 0:00:10.5]} 73. Bh5+ {[%clk
0:00:14.8]} 73... Kg8 {[%clk 0:00:10.3]} 74. Ne7+ {[%clk 0:00:14.5]} 74... Kg7
{[%clk 0:00:10.9]} 0-1

[Event "*** Titled Tuesday 3|2 Blitz"]
[Site "Chess.com"]
[Date "2016.08.02"]
[Round "5"]
[White "WanderingPuppet"]
[Black "wnstop"]
[Result "1-0"]
[WhiteElo "2284"]
[BlackElo "2445"]
[TimeControl "180+2"]
[EndTime "12:09:59 PDT"]
[Termination "WanderingPuppet won by checkmate"]

1. e4 {[%clk 0:03:01.9]} 1... c5 {[%clk 0:02:52.6]} 2. Nf3 {[%clk 0:03:02.5]}
2... e6 {[%clk 0:02:53.9]} 3. d4 {[%clk 0:03:03.7]} 3... cxd4 {[%clk 0:02:55.6]}
4. Nxd4 {[%clk 0:03:05.6]} 4... Nc6 {[%clk 0:02:57.2]} 5. Nc3 {[%clk 0:03:04.1]}
5... Qc7 {[%clk 0:02:58.3]} 6. Be3 {[%clk 0:03:04.5]} 6... a6 {[%clk 0:02:59.1]}
7. Qd2 {[%clk 0:03:04.8]} 7... Nf6 {[%clk 0:02:59]} 8. f3 {[%clk 0:03:03.1]}
8... Be7 {[%clk 0:02:59]} 9. O-O-O {[%clk 0:03:03.2]} 9... b5 {[%clk 0:02:57.1]}
10. g4 {[%clk 0:03:02.8]} 10... Nxd4 {[%clk 0:02:57.8]} 11. Qxd4 {[%clk
0:03:02.8]} 11... Bb7 {[%clk 0:02:49.2]} 12. g5 {[%clk 0:03:00.2]} 12... Nh5
{[%clk 0:02:49.6]} 13. Kb1 {[%clk 0:02:34.5]} 13... Rc8 {[%clk 0:02:49]} 14. Bh3
{[%clk 0:02:10.8]} 14... b4 {[%clk 0:02:45.3]} 15. Ne2 {[%clk 0:02:11.8]} 15...
O-O {[%clk 0:02:14]} 16. Qd2 {[%clk 0:02:00.7]} 16... g6 {[%clk 0:02:07.9]} 17.
Ng3 {[%clk 0:02:00]} 17... Ng7 {[%clk 0:01:46.8]} 18. Bg4 {[%clk 0:01:58.5]}
18... d5 {[%clk 0:01:44.7]} 19. h4 {[%clk 0:01:50.4]} 19... Rfd8 {[%clk
0:01:35]} 20. e5 {[%clk 0:01:38.8]} 20... d4 {[%clk 0:01:14.1]} 21. Bf4 {[%clk
0:01:35.9]} 21... Nf5 {[%clk 0:01:10.4]} 22. Bxf5 {[%clk 0:01:30.1]} 22... exf5
{[%clk 0:01:10.8]} 23. e6 {[%clk 0:01:28.5]} 23... Qc4 {[%clk 0:01:05.4]} 24.
exf7+ {[%clk 0:01:28.1]} 24... Qxf7 {[%clk 0:01:05.3]} 25. h5 {[%clk 0:01:12.4]}
25... Bd6 {[%clk 0:00:18.3]} 26. hxg6 {[%clk 0:01:02]} 26... hxg6 {[%clk
0:00:18.4]} 27. Qxd4 {[%clk 0:01:00]} 27... Qg7 {[%clk 0:00:13.1]} 28. Qxg7+
{[%clk 0:00:48.5]} 28... Kxg7 {[%clk 0:00:14]} 29. Bxd6 {[%clk 0:00:43.7]} 29...
Bxf3 {[%clk 0:00:14.7]} 30. Be5+ {[%clk 0:00:44.6]} 30... Kf7 {[%clk 0:00:16.1]}
31. Rxd8 {[%clk 0:00:43.5]} 31... Rxd8 {[%clk 0:00:17.1]} 32. Re1 {[%clk
0:00:42.1]} 32... Re8 {[%clk 0:00:15]} 33. Kc1 {[%clk 0:00:38.4]} 33... f4
{[%clk 0:00:13.7]} 34. Nf1 {[%clk 0:00:37.1]} 34... Bg2 {[%clk 0:00:14.4]} 35.
Nh2 {[%clk 0:00:33.7]} 35... f3 {[%clk 0:00:15.3]} 36. Bg3 {[%clk 0:00:25.9]}
36... Rxe1+ {[%clk 0:00:15.9]} 37. Bxe1 {[%clk 0:00:27.8]} 37... Ke6 {[%clk
0:00:17.5]} 38. Kd2 {[%clk 0:00:25.7]} 38... Kf5 {[%clk 0:00:18.7]} 39. Ke3
{[%clk 0:00:24.1]} 39... Kxg5 {[%clk 0:00:19.8]} 40. Nxf3+ {[%clk 0:00:25]}
40... Kg4 {[%clk 0:00:18.6]} 41. Ne5+ {[%clk 0:00:24]} 41... Kf5 {[%clk
0:00:19.8]} 42. Nf3 {[%clk 0:00:20.7]} 42... Kg4 {[%clk 0:00:13.9]} 43. Nd4
{[%clk 0:00:20.5]} 43... a5 {[%clk 0:00:14.1]} 44. a3 {[%clk 0:00:21.5]} 44...
bxa3 {[%clk 0:00:15.3]} 45. bxa3 {[%clk 0:00:23.4]} 45... a4 {[%clk 0:00:16.8]}
46. Nb5 {[%clk 0:00:20.9]} 46... Bc6 {[%clk 0:00:15.7]} 47. Nd6 {[%clk
0:00:19.5]} 47... Kg5 {[%clk 0:00:14.7]} 48. Kd4 {[%clk 0:00:18.6]} 48... Kf4
{[%clk 0:00:14]} 49. Bd2+ {[%clk 0:00:18.8]} 49... Kf3 {[%clk 0:00:14.3]} 50.
Kc5 {[%clk 0:00:17]} 50... Bd7 {[%clk 0:00:15.6]} 51. c4 {[%clk 0:00:17]} 51...
Ke2 {[%clk 0:00:16.9]} 52. Bg5 {[%clk 0:00:17.9]} 52... Kd3 {[%clk 0:00:18.2]}
53. Kb4 {[%clk 0:00:15.6]} 53... Kd4 {[%clk 0:00:19.3]} 54. c5 {[%clk
0:00:15.8]} 54... Kd5 {[%clk 0:00:19.9]} 55. Nb7 {[%clk 0:00:12.1]} 55... Kc6
{[%clk 0:00:15.6]} 56. Na5+ {[%clk 0:00:11.4]} 56... Kc7 {[%clk 0:00:16.8]} 57.
Nc4 {[%clk 0:00:09.9]} 57... Kc6 {[%clk 0:00:16.4]} 58. Ne5+ {[%clk 0:00:10.3]}
58... Kc7 {[%clk 0:00:17.4]} 59. Nxd7 {[%clk 0:00:11.4]} 59... Kxd7 {[%clk
0:00:18.9]} 60. Kxa4 {[%clk 0:00:13]} 60... Kc6 {[%clk 0:00:20.8]} 61. Be7
{[%clk 0:00:13.6]} 61... g5 {[%clk 0:00:21.4]} 62. Kb4 {[%clk 0:00:14.5]} 62...
g4 {[%clk 0:00:22.6]} 63. Bh4 {[%clk 0:00:15.8]} 63... Kc7 {[%clk 0:00:22.9]}
64. Bg3+ {[%clk 0:00:16.7]} 64... Kb7 {[%clk 0:00:24.6]} 65. Kc4 {[%clk
0:00:18.2]} 65... Kc6 {[%clk 0:00:25.7]} 66. Kd4 {[%clk 0:00:19.3]} 66... Kd7
{[%clk 0:00:24.4]} 67. Kd5 {[%clk 0:00:20.5]} 67... Kc8 {[%clk 0:00:25.5]} 68.
a4 {[%clk 0:00:21.4]} 68... Kb7 {[%clk 0:00:26.7]} 69. Kd6 {[%clk 0:00:21.5]}
69... Kc8 {[%clk 0:00:27]} 70. c6 {[%clk 0:00:21.8]} 70... Kd8 {[%clk
0:00:27.5]} 71. a5 {[%clk 0:00:21.8]} 71... Kc8 {[%clk 0:00:28.8]} 72. a6 {[%clk
0:00:21.3]} 72... Kb8 {[%clk 0:00:27.8]} 73. a7+ {[%clk 0:00:13.7]} 73... Kxa7
{[%clk 0:00:26.1]} 74. Kd7 {[%clk 0:00:13.7]} 74... Ka8 {[%clk 0:00:23.4]} 75.
c7 {[%clk 0:00:13.9]} 75... Ka7 {[%clk 0:00:25.3]} 76. Bf4 {[%clk 0:00:13]}
76... g3 {[%clk 0:00:22.4]} 77. Bxg3 {[%clk 0:00:13.9]} 77... Kb6 {[%clk
0:00:22.1]} 78. c8=Q {[%clk 0:00:13.5]} 78... Kb5 {[%clk 0:00:23.5]} 79. Qc6+
{[%clk 0:00:14.2]} 79... Kb4 {[%clk 0:00:24.9]} 80. Bd6+ {[%clk 0:00:15.4]}
80... Kb3 {[%clk 0:00:26.1]} 81. Be7 {[%clk 0:00:17.3]} 81... Kb2 {[%clk
0:00:27.3]} 82. Bd8 {[%clk 0:00:19.2]} 82... Kb1 {[%clk 0:00:28.9]} 83. Qc4
{[%clk 0:00:19.2]} 83... Ka1 {[%clk 0:00:30.8]} 84. Qb4 {[%clk 0:00:19.8]} 84...
Ka2 {[%clk 0:00:32.1]} 85. Ke6 {[%clk 0:00:21.1]} 85... Ka1 {[%clk 0:00:33.1]}
86. Kd5 {[%clk 0:00:23]} 86... Ka2 {[%clk 0:00:34.3]} 87. Kd4 {[%clk 0:00:24.9]}
87... Ka1 {[%clk 0:00:35.8]} 88. Kc3 {[%clk 0:00:26.1]} 88... Ka2 {[%clk
0:00:37]} 89. Qb2# {[%clk 0:00:26.9]} 1-0

[Event "*** Titled Tuesday 3|2 Blitz"]
[Site "Chess.com"]
[Date "2016.08.02"]
[Round "6"]
[White "wnstop"]
[Black "lukas_111111"]
[Result "1-0"]
[WhiteElo "2449"]
[BlackElo "2250"]
[TimeControl "180+2"]
[EndTime "12:16:24 PDT"]
[Termination "wnstop won by resignation"]

1. e4 {[%clk 0:03:00.5]} 1... c5 {[%clk 0:02:52.7]} 2. Nf3 {[%clk 0:02:58.6]}
2... d6 {[%clk 0:02:53.8]} 3. d4 {[%clk 0:02:59.8]} 3... cxd4 {[%clk 0:02:55.1]}
4. Nxd4 {[%clk 0:03:01.7]} 4... Nf6 {[%clk 0:02:56.8]} 5. Nc3 {[%clk 0:03:03.4]}
5... a6 {[%clk 0:02:58.1]} 6. Bg5 {[%clk 0:03:04.9]} 6... e6 {[%clk 0:02:58]} 7.
f4 {[%clk 0:03:06.1]} 7... Be7 {[%clk 0:02:59.3]} 8. Qf3 {[%clk 0:03:07.5]} 8...
Qc7 {[%clk 0:03:00.6]} 9. O-O-O {[%clk 0:03:09.1]} 9... Nbd7 {[%clk 0:03:01.8]}
10. Bd3 {[%clk 0:03:10.8]} 10... h6 {[%clk 0:02:58.1]} 11. Bh4 {[%clk
0:03:10.2]} 11... b5 {[%clk 0:02:59]} 12. Rhe1 {[%clk 0:03:05.3]} 12... Bb7
{[%clk 0:02:59.6]} 13. Qg3 {[%clk 0:02:56.6]} 13... b4 {[%clk 0:02:46]} 14. Nd5
{[%clk 0:02:55.3]} 14... exd5 {[%clk 0:02:45.7]} 15. exd5 {[%clk 0:02:56.4]}
15... Kd8 {[%clk 0:02:42.6]} 16. Nc6+ {[%clk 0:02:49.5]} 16... Bxc6 {[%clk
0:02:43.1]} 17. dxc6 {[%clk 0:02:50.6]} 17... Nc5 {[%clk 0:02:37.1]} 18. Qxg7
{[%clk 0:02:37.7]} 18... Rg8 {[%clk 0:02:20.1]} 19. Qxf7 {[%clk 0:02:34.2]}
19... Rf8 {[%clk 0:02:11.7]} 20. Qxf8+ {[%clk 0:02:08.9]} 1-0

[Event "*** Titled Tuesday 3|2 Blitz"]
[Site "Chess.com"]
[Date "2016.08.02"]
[Round "6"]
[White "Sanan_Sjugirov"]
[Black "Saitama_Hero"]
[Result "1-0"]
[WhiteElo "2669"]
[BlackElo "2210"]
[TimeControl "180+2"]
[EndTime "12:17:08 PDT"]
[Termination "Sanan_Sjugirov won by resignation"]

1. d4 {[%clk 0:03:01.9]} 1... Nf6 {[%clk 0:02:59.7]} 2. Nf3 {[%clk 0:03:02.9]}
2... g6 {[%clk 0:03:01.1]} 3. Bg5 {[%clk 0:03:04.2]} 3... Bg7 {[%clk 0:03:02.2]}
4. Nbd2 {[%clk 0:03:05.9]} 4... c5 {[%clk 0:02:59]} 5. e3 {[%clk 0:03:04.7]}
5... O-O {[%clk 0:02:58.5]} 6. c3 {[%clk 0:03:05.5]} 6... b6 {[%clk 0:02:59.2]}
7. Bc4 {[%clk 0:03:02.9]} 7... d5 {[%clk 0:02:51.6]} 8. Bd3 {[%clk 0:03:03.1]}
8... Bb7 {[%clk 0:02:50.7]} 9. h4 {[%clk 0:03:04.3]} 9... Nbd7 {[%clk
0:02:49.7]} 10. h5 {[%clk 0:03:02.7]} 10... Ne4 {[%clk 0:02:51.2]} 11. hxg6
{[%clk 0:03:01.5]} 11... hxg6 {[%clk 0:02:41.8]} 12. Bf4 {[%clk 0:02:57.9]}
12... Re8 {[%clk 0:02:07.4]} 13. Qe2 {[%clk 0:02:56.1]} 13... Nxd2 {[%clk
0:01:54.2]} 14. Qxd2 {[%clk 0:02:54.3]} 14... cxd4 {[%clk 0:01:54]} 15. exd4
{[%clk 0:02:47.5]} 15... e5 {[%clk 0:01:54.3]} 16. dxe5 {[%clk 0:02:48.5]} 16...
Nxe5 {[%clk 0:01:54.5]} 17. Nxe5 {[%clk 0:02:49.7]} 17... Bxe5 {[%clk
0:01:54.8]} 18. O-O-O {[%clk 0:02:49.6]} 18... Rc8 {[%clk 0:01:44.6]} 19. Bxe5
{[%clk 0:02:35.8]} 19... Rxe5 {[%clk 0:01:44.6]} 20. Rh3 {[%clk 0:02:12.8]}
20... Qg5 {[%clk 0:01:33.1]} 21. f4 {[%clk 0:02:12.1]} 1-0

[Event "*** Titled Tuesday 3|2 Blitz"]
[Site "Chess.com"]
[Date "2016.08.02"]
[Round "6"]
[White "Semetey"]
[Black "Newlight1"]
[Result "0-1"]
[WhiteElo "2425"]
[BlackElo "2411"]
[TimeControl "180+2"]
[EndTime "12:17:10 PDT"]
[Termination "Newlight1 won by resignation"]

1. d4 {[%clk 0:03:01.9]} 1... Nf6 {[%clk 0:02:59.6]} 2. Bf4 {[%clk 0:03:02.7]}
2... c5 {[%clk 0:02:58.9]} 3. e3 {[%clk 0:03:02.8]} 3... e6 {[%clk 0:02:58.7]}
4. c3 {[%clk 0:03:03.2]} 4... Nc6 {[%clk 0:02:57]} 5. Nd2 {[%clk 0:03:04.1]}
5... d5 {[%clk 0:02:46.3]} 6. Ngf3 {[%clk 0:03:04.9]} 6... Be7 {[%clk
0:02:44.2]} 7. Bd3 {[%clk 0:03:05]} 7... b6 {[%clk 0:02:43.1]} 8. h3 {[%clk
0:03:04.8]} 8... Bb7 {[%clk 0:02:44.7]} 9. O-O {[%clk 0:03:05.3]} 9... O-O
{[%clk 0:02:46.4]} 10. Bh2 {[%clk 0:03:00.2]} 10... Rc8 {[%clk 0:02:41.8]} 11.
Ne5 {[%clk 0:03:00.6]} 11... Nxe5 {[%clk 0:02:24]} 12. dxe5 {[%clk 0:03:01.1]}
12... Nd7 {[%clk 0:02:23]} 13. Nf3 {[%clk 0:02:58.7]} 13... c4 {[%clk
0:02:19.4]} 14. Bc2 {[%clk 0:02:59.5]} 14... Qc7 {[%clk 0:02:19.5]} 15. Qd4
{[%clk 0:02:54.2]} 15... Nc5 {[%clk 0:02:16.1]} 16. Rad1 {[%clk 0:02:51.1]}
16... b5 {[%clk 0:02:11.7]} 17. Qg4 {[%clk 0:02:50.9]} 17... Rfe8 {[%clk
0:02:07.7]} 18. Nd4 {[%clk 0:02:44.9]} 18... g6 {[%clk 0:02:05]} 19. h4 {[%clk
0:02:44.8]} 19... b4 {[%clk 0:02:04.3]} 20. cxb4 {[%clk 0:02:43.1]} 20... Nd3
{[%clk 0:02:04]} 21. Bxd3 {[%clk 0:02:44.2]} 21... cxd3 {[%clk 0:02:04]} 22. a3
{[%clk 0:02:40.5]} 22... h5 {[%clk 0:02:01.1]} 23. Qf4 {[%clk 0:02:38.6]} 23...
Qc4 {[%clk 0:01:50.7]} 24. Rd2 {[%clk 0:02:32]} 24... Qc1 {[%clk 0:01:43.3]} 25.
Rfd1 {[%clk 0:02:28.5]} 25... Qxd2 {[%clk 0:01:39.7]} 26. Qf3 {[%clk 0:02:23.7]}
26... Rc1 {[%clk 0:01:36]} 27. Bf4 {[%clk 0:02:22.8]} 27... Qxd1+ {[%clk
0:01:35]} 0-1

[Event "*** Titled Tuesday 3|2 Blitz"]
[Site "Chess.com"]
[Date "2016.08.02"]
[Round "6"]
[White "CroatianPower"]
[Black "Andrejkin"]
[Result "0-1"]
[WhiteElo "2412"]
[BlackElo "2233"]
[TimeControl "180+2"]
[EndTime "12:18:29 PDT"]
[Termination "Andrejkin won by resignation"]

1. d4 {[%clk 0:03:01.9]} 1... Nf6 {[%clk 0:03:00.3]} 2. c4 {[%clk 0:03:02.1]}
2... e6 {[%clk 0:03:02.2]} 3. Nf3 {[%clk 0:03:02.1]} 3... b6 {[%clk 0:03:02.9]}
4. a3 {[%clk 0:03:02.9]} 4... Bb7 {[%clk 0:03:04.8]} 5. Nc3 {[%clk 0:03:02.9]}
5... d5 {[%clk 0:03:03.8]} 6. cxd5 {[%clk 0:03:03.2]} 6... Nxd5 {[%clk
0:03:04.1]} 7. Qc2 {[%clk 0:03:03.7]} 7... Be7 {[%clk 0:02:47.1]} 8. e4 {[%clk
0:03:04.4]} 8... Nxc3 {[%clk 0:02:39.5]} 9. bxc3 {[%clk 0:03:06.3]} 9... O-O
{[%clk 0:02:39.1]} 10. Bd3 {[%clk 0:03:07]} 10... c5 {[%clk 0:02:38.7]} 11. O-O
{[%clk 0:03:08.1]} 11... Nc6 {[%clk 0:02:37.5]} 12. Be3 {[%clk 0:02:48.6]} 12...
cxd4 {[%clk 0:02:26.9]} 13. cxd4 {[%clk 0:02:48.5]} 13... Rc8 {[%clk 0:02:28]}
14. Qe2 {[%clk 0:02:43.9]} 14... h6 {[%clk 0:02:24.9]} 15. a4 {[%clk 0:02:44.9]}
15... Nb4 {[%clk 0:02:23.3]} 16. Bb1 {[%clk 0:02:44.4]} 16... Ba6 {[%clk
0:02:22.6]} 17. Qb2 {[%clk 0:02:44.4]} 17... Bxf1 {[%clk 0:02:24.5]} 18. Kxf1
{[%clk 0:02:46.3]} 18... Qc7 {[%clk 0:02:24.1]} 19. e5 {[%clk 0:02:39.5]} 19...
Rfd8 {[%clk 0:02:20.3]} 20. Be4 {[%clk 0:02:38.3]} 20... Nc2 {[%clk 0:02:17.4]}
21. Rd1 {[%clk 0:02:34.4]} 21... Nxe3+ {[%clk 0:02:17.3]} 22. fxe3 {[%clk
0:02:36.3]} 22... Qc3 {[%clk 0:02:14.6]} 23. Qe2 {[%clk 0:02:36.3]} 23... Bb4
{[%clk 0:02:09.9]} 24. Bb1 {[%clk 0:02:35.1]} 24... a5 {[%clk 0:02:08.6]} 25. e4
{[%clk 0:02:31.1]} 25... Qa1 {[%clk 0:02:06.7]} 26. d5 {[%clk 0:02:31.7]} 26...
Qxa4 {[%clk 0:02:05.8]} 27. d6 {[%clk 0:02:33]} 27... Rc3 {[%clk 0:01:56.8]} 28.
Bd3 {[%clk 0:02:28.2]} 28... Qb3 {[%clk 0:01:54.8]} 29. Nd4 {[%clk 0:02:27.2]}
29... Qa3 {[%clk 0:01:54]} 30. Nb5 {[%clk 0:02:28.1]} 30... Qa4 {[%clk 0:01:53]}
31. Nxc3 {[%clk 0:02:27.6]} 31... Bxc3 {[%clk 0:01:54.9]} 32. Bb5 {[%clk
0:02:28.5]} 32... Qb4 {[%clk 0:01:53.3]} 33. d7 {[%clk 0:02:27.9]} 33... a4
{[%clk 0:01:54.6]} 34. Qc4 {[%clk 0:02:25.1]} 34... Qxc4+ {[%clk 0:01:53.3]} 35.
Bxc4 {[%clk 0:02:27]} 35... a3 {[%clk 0:01:55.1]} 36. Ke2 {[%clk 0:02:23.5]}
36... b5 {[%clk 0:01:54]} 37. Bb3 {[%clk 0:02:24]} 37... Bxe5 {[%clk 0:01:52.8]}
38. h3 {[%clk 0:02:23.1]} 38... Kf8 {[%clk 0:01:52.2]} 39. Rd3 {[%clk
0:02:22.1]} 39... Ke7 {[%clk 0:01:44.2]} 0-1

[Event "*** Titled Tuesday 3|2 Blitz"]
[Site "Chess.com"]
[Date "2016.08.02"]
[Round "6"]
[White "MMSANCHEZ"]
[Black "diokletian"]
[Result "0-1"]
[WhiteElo "2283"]
[BlackElo "2439"]
[TimeControl "180+2"]
[EndTime "12:18:29 PDT"]
[Termination "diokletian won by resignation"]

1. d4 {[%clk 0:03:01.9]} 1... Nf6 {[%clk 0:03:00.2]} 2. Nf3 {[%clk 0:03:03]}
2... g6 {[%clk 0:03:00.8]} 3. Nbd2 {[%clk 0:03:03.4]} 3... d5 {[%clk 0:02:59.6]}
4. e3 {[%clk 0:03:04.6]} 4... Bg7 {[%clk 0:03:00.4]} 5. b4 {[%clk 0:03:06.2]}
5... O-O {[%clk 0:03:00.6]} 6. c4 {[%clk 0:03:07.3]} 6... b6 {[%clk 0:03:00.8]}
7. a4 {[%clk 0:03:08.1]} 7... c5 {[%clk 0:03:01.3]} 8. bxc5 {[%clk 0:03:08.4]}
8... bxc5 {[%clk 0:03:02.1]} 9. Bb2 {[%clk 0:03:09.4]} 9... Nc6 {[%clk
0:02:52.6]} 10. Be2 {[%clk 0:03:07.8]} 10... Rb8 {[%clk 0:02:53.1]} 11. Rb1
{[%clk 0:02:59.5]} 11... Bf5 {[%clk 0:02:52.7]} 12. O-O {[%clk 0:02:51.2]} 12...
Bxb1 {[%clk 0:02:52.4]} 13. Qxb1 {[%clk 0:02:53.1]} 13... cxd4 {[%clk
0:02:53.3]} 14. Nxd4 {[%clk 0:02:51.7]} 14... Nxd4 {[%clk 0:02:49.8]} 15. exd4
{[%clk 0:02:52.7]} 15... dxc4 {[%clk 0:02:47.7]} 16. Bxc4 {[%clk 0:02:51.1]}
16... Nh5 {[%clk 0:02:44.6]} 17. Qa1 {[%clk 0:02:43.6]} 17... Qa5 {[%clk
0:02:36]} 18. Rd1 {[%clk 0:02:30.1]} 18... Rfc8 {[%clk 0:02:31.1]} 19. Qa2
{[%clk 0:02:00.3]} 19... e6 {[%clk 0:02:27.8]} 20. Ba1 {[%clk 0:01:51.8]} 20...
Nf4 {[%clk 0:02:22.3]} 21. Nf3 {[%clk 0:01:49]} 21... Qf5 {[%clk 0:02:03.5]} 22.
Ne5 {[%clk 0:01:38.1]} 22... Bxe5 {[%clk 0:02:01.4]} 23. dxe5 {[%clk 0:01:38.8]}
23... Rxc4 {[%clk 0:01:43.9]} 24. Qxc4 {[%clk 0:01:07.2]} 24... Qg4 {[%clk
0:01:43.7]} 25. Qf1 {[%clk 0:00:58.1]} 25... Nh3+ {[%clk 0:01:43.4]} 26. Kh1
{[%clk 0:00:58.4]} 26... Nxf2+ {[%clk 0:01:35.4]} 0-1

[Event "*** Titled Tuesday 3|2 Blitz"]
[Site "Chess.com"]
[Date "2016.08.02"]
[Round "6"]
[White "Usurpov"]
[Black "Oleksandr_Bortnyk"]
[Result "0-1"]
[WhiteElo "2335"]
[BlackElo "2541"]
[TimeControl "180+2"]
[EndTime "12:18:43 PDT"]
[Termination "Oleksandr_Bortnyk won by resignation"]

1. e4 {[%clk 0:03:01.9]} 1... Nf6 {[%clk 0:02:47.7]} 2. Nc3 {[%clk 0:03:00.5]}
2... d5 {[%clk 0:02:47.6]} 3. e5 {[%clk 0:03:01.1]} 3... Nfd7 {[%clk 0:02:48.3]}
4. d4 {[%clk 0:03:00.5]} 4... c5 {[%clk 0:02:48.7]} 5. Nce2 {[%clk 0:02:45]}
5... cxd4 {[%clk 0:02:49]} 6. f4 {[%clk 0:02:44.5]} 6... e6 {[%clk 0:02:49.7]}
7. Nxd4 {[%clk 0:02:44.5]} 7... Nc6 {[%clk 0:02:51.6]} 8. Ngf3 {[%clk
0:02:45.6]} 8... Bc5 {[%clk 0:02:52.2]} 9. c3 {[%clk 0:02:34.2]} 9... O-O {[%clk
0:02:47.7]} 10. Bd3 {[%clk 0:02:33.1]} 10... g6 {[%clk 0:02:39]} 11. Be3 {[%clk
0:02:25.8]} 11... Qb6 {[%clk 0:02:32.9]} 12. b4 {[%clk 0:02:20.1]} 12... Nxd4
{[%clk 0:02:32.1]} 13. Nxd4 {[%clk 0:02:16.3]} 13... Bxd4 {[%clk 0:02:32.5]} 14.
Bxd4 {[%clk 0:02:18.2]} 14... Qc7 {[%clk 0:02:29.6]} 15. O-O {[%clk 0:01:38.4]}
15... a5 {[%clk 0:02:27.9]} 16. a3 {[%clk 0:01:34.9]} 16... Nb6 {[%clk
0:02:25.5]} 17. Qe1 {[%clk 0:01:26.7]} 17... Nc4 {[%clk 0:02:21.3]} 18. f5
{[%clk 0:01:11.6]} 18... exf5 {[%clk 0:02:18.9]} 19. Bxf5 {[%clk 0:01:05.5]}
19... Bxf5 {[%clk 0:02:16.5]} 20. Rxf5 {[%clk 0:01:06]} 20... axb4 {[%clk
0:02:15.4]} 21. cxb4 {[%clk 0:00:54]} 21... Rxa3 {[%clk 0:02:10.9]} 22. Rc1
{[%clk 0:00:47.8]} 22... gxf5 {[%clk 0:02:08.1]} 23. e6 {[%clk 0:00:43]} 23...
fxe6 {[%clk 0:02:01.2]} 24. Qh4 {[%clk 0:00:38]} 24... e5 {[%clk 0:01:49.6]} 25.
Rxc4 {[%clk 0:00:31]} 25... dxc4 {[%clk 0:01:46.1]} 0-1